fUST/lending_fUST_20240517
["ID","MTS","AMOUNT","RATE_DAILY","PERIOD"]
[327249475,1715923841446,-500.0,0.00016438,2]
[327249476,1715923841455,-500.0,0.00016438,2]
[327249477,1715923841465,-585.41,0.00016438,2]
[327249478,1715923841475,-500.0,0.00016438,2]
[327249479,1715923841484,-500.0,0.00016438,2]
[327249480,1715923841494,-557.72,0.00016438,2]
[327249481,1715923841503,-500.0,0.00016438,2]
[327249482,1715923841514,-509.04,0.00016438,2]
[327249483,1715923841523,-500.0,0.00016438,2]
[327249484,1715923841533,-500.0,0.00016438,2]
[327249485,1715923841543,-500.0,0.00016438,2]
[327249486,1715923841554,-220.5,0.00016643,2]
[327249487,1715923841564,-150.0,0.00016643,2]
[327249488,1715923841574,-150.0,0.0001667,2]
[327249489,1715923841584,-495.0,0.0001667,2]
[327249490,1715923841594,-1570.18771205,0.00016712,3]
[327249491,1715923841604,-500.0,0.00016712,2]
[327249492,1715923841614,-500.0,0.00016712,2]
[327249493,1715923841624,-639.28334267,0.00016712,2]
[327249494,1715923841635,-500.0,0.00016712,2]
[327249495,1715923841646,-500.0,0.00016712,2]
[327249496,1715923841655,-500.0,0.00016712,2]
[327249497,1715923841665,-500.0,0.00016712,2]
[327249498,1715923841675,-500.0,0.00016712,2]
[327249499,1715923841685,-500.0,0.00016712,2]
[327249500,1715923841695,-750.25,0.00016712,2]
[327249501,1715923841705,-500.0,0.00016712,2]
[327249502,1715923841714,-338.99833596,0.00016712,2]
[327249503,1715923841726,-500.0,0.00016712,2]
[327249504,1715923841736,-232.98875874,0.00016712,2]
[327249505,1715923841746,-201.3498757,0.00016712,2]
[327249506,1715923841756,-832.16,0.00016712,2]
[327249507,1715923841766,-500.0,0.00016712,2]
[327249508,1715923841776,-500.0,0.00016712,2]
[327249509,1715923841786,-500.0,0.00016712,2]
[327249510,1715923841795,-572.65,0.00016712,2]
[327249511,1715923841807,-500.0,0.00016712,2]
[327249512,1715923841817,-500.0,0.00016712,2]
[327249513,1715923841826,-585.68,0.00016712,2]
[327249514,1715923841836,-854.05,0.00016712,2]
[327249515,1715923841846,-500.0,0.00016712,2]
[327249516,1715923841855,-556.93,0.00016712,2]
[327249517,1715923841865,-500.0,0.00016712,2]
[327249518,1715923841875,-245.27,0.00016712,2]
[327249519,1715923841885,-500.0,0.00016712,2]
[327249520,1715923841895,-601.49,0.00016712,2]
[327249521,1715923841904,-202.17,0.00016712,2]
[327249522,1715923841915,-500.0,0.00016712,2]
[327249523,1715923841924,-803.5,0.00016712,2]
[327249524,1715923841935,-500.0,0.00016712,2]
[327249525,1715923841944,-500.0,0.00016712,2]
[327249526,1715923841954,-500.0,0.00016712,4]
[327249527,1715923841964,-608.98112108,0.00016712,2]
[327249528,1715923841974,-668.16,0.00016712,2]
[327249529,1715923841984,-500.0,0.00016712,2]
[327249530,1715923841994,-500.0,0.00016712,2]
[327249531,1715923842004,-2426.51,0.00016712,2]
[327249532,1715923842013,-1312.25,0.00016712,2]
[327249533,1715923842023,-730.43,0.00016712,2]
[327249534,1715923842032,-500.0,0.00016712,2]
[327249535,1715923842042,-500.0,0.00016712,2]
[327249536,1715923842052,-1501.89,0.00016712,2]
[327249537,1715923842062,-16390.8,0.00016712,2]
[327249538,1715923842071,-500.0,0.00016712,2]
[327249539,1715923842080,-500.0,0.00016712,2]
[327249540,1715923842090,-661.93,0.00016712,2]
[327249541,1715923842100,-808.26,0.00016712,2]
[327249542,1715923842109,-4251.68,0.00016712,2]
[327249543,1715923842118,-639.06,0.00016712,2]
[327249544,1715923842128,-1546.93,0.00016712,2]
[327249545,1715923842137,-500.0,0.00016712,2]
[327249546,1715923842147,-594.97515021,0.00016712,2]
[327249547,1715923842157,-500.0,0.00016712,2]
[327249548,1715923842166,-2007.69,0.00016712,2]
[327249549,1715923842176,-626.44,0.00016712,2]
[327249550,1715923842187,-927.79,0.00016712,2]
[327249551,1715923842196,-504.11,0.00016712,2]
[327249552,1715923842206,-500.0,0.00016712,2]
[327249553,1715923842215,-6526.61,0.00016712,2]
[327249554,1715923842224,-500.0,0.00016712,2]
[327249555,1715923842234,-500.0,0.00016712,2]
[327249556,1715923842243,-900.85,0.00016712,2]
[327249557,1715923842253,-500.0,0.00016712,2]
[327249558,1715923842262,-4110.51,0.00016712,2]
[327249559,1715923842272,-651.03,0.00016712,2]
[327249560,1715923842281,-1325.45,0.00016712,2]
[327249561,1715923842291,-717.16,0.00016712,2]
[327249562,1715923842300,-1039.37,0.00016712,2]
[327249563,1715923842310,-500.0,0.00016712,2]
[327249564,1715923842319,-409.01562092,0.00016712,2]
[327249565,1715923842328,-585.41,0.00016712,2]
[327249566,1715923842338,-500.0,0.00016712,2]
[327249567,1715923842347,-500.0,0.00016712,2]
[327249568,1715923842357,-557.72,0.00016712,2]
[327249569,1715923842368,-500.0,0.00016712,2]
[327249570,1715923842378,-509.04,0.00016712,2]
[327249571,1715923842388,-500.0,0.00016712,2]
[327249572,1715923842397,-500.0,0.00016712,2]
[327249573,1715923842407,-220.5,0.00016849,2]
[327249574,1715923842417,-150.0,0.00016849,2]
[327249575,1715923842427,-500.0,0.00016986,2]
[327249576,1715923842437,-500.0,0.00016986,2]
[327249577,1715923842447,-151.692021,0.00016986,2]
[327249578,1715923842455,-500.0,0.00016986,2]
[327249579,1715923842464,-500.0,0.00016986,2]
[327249580,1715923842474,-500.0,0.00016986,2]
[327249581,1715923842483,-617.32140929,0.00016986,2]
[327249582,1715923842492,-500.0,0.00016986,2]
[327249583,1715923842502,-500.0,0.00016986,2]
[327249584,1715923842511,-750.25,0.00016986,2]
[327249585,1715923842520,-500.0,0.00016986,2]
[327249586,1715923842530,-500.0,0.00016986,2]
[327249587,1715923842539,-832.16,0.00016986,2]
[327249588,1715923842549,-151.0,0.00016986,2]
[327249589,1715923842558,-500.0,0.00016986,2]
[327249590,1715923842569,-500.0,0.00016986,2]
[327249591,1715923842578,-155.806589,0.00016986,2]
[327249592,1715923842588,-170.986449,0.00016986,2]
[327249593,1715923842598,-151.0,0.00016986,2]
[327249594,1715923842607,-500.0,0.00016986,2]
[327249595,1715923842617,-572.65,0.00016986,2]
[327249596,1715923842626,-500.0,0.00016986,2]
[327249597,1715923842636,-500.0,0.00016986,2]
[327249598,1715923842645,-585.68,0.00016986,2]
[327249599,1715923842655,-854.05,0.00016986,2]
[327249600,1715923842664,-151.825234,0.00016986,2]
[327249601,1715923842837,-500.0,0.00016986,2]
[327249602,1715923842847,-556.93,0.00016986,2]
[327249603,1715923842856,-576.77,0.00016986,2]
[327249604,1715923842867,-151.0,0.00016986,2]
[327249605,1715923842877,-198.345706,0.00016986,2]
[327249606,1715923842887,-500.0,0.00016986,2]
[327249607,1715923842896,-151.0,0.00016986,2]
[327249608,1715923842905,-151.0,0.00016986,2]
[327249609,1715923842915,-151.0,0.00016986,2]
[327249610,1715923842924,-151.0,0.00016986,2]
[327249611,1715923842934,-601.49,0.00016986,2]
[327249612,1715923842943,-151.0,0.00016986,2]
[327249613,1715923842952,-151.0,0.00016986,2]
[327249614,1715923842962,-151.0,0.00016986,2]
[327249615,1715923842972,-151.0,0.00016986,2]
[327249616,1715923842981,-249.204008,0.00016986,2]
[327249617,1715923842991,-288.28,0.00016986,2]
[327249618,1715923843000,-803.5,0.00016986,2]
[327249619,1715923843010,-188.34,0.00016986,2]
[327249620,1715923843020,-500.0,0.00016986,2]
[327249621,1715923843030,-500.0,0.00016986,4]
[327249622,1715923843039,-668.16,0.00016986,2]
[327249623,1715923843049,-500.0,0.00016986,2]
[327249624,1715923843058,-500.0,0.00016986,2]
[327249625,1715923843067,-2426.51,0.00016986,2]
[327249626,1715923843077,-1312.25,0.00016986,2]
[327249627,1715923843086,-730.43,0.00016986,2]
[327249628,1715923843096,-500.0,0.00016986,2]
[327249629,1715923843105,-500.0,0.00016986,2]
[327249631,1715923843114,-1501.89,0.00016986,2]
[327249633,1715923843123,-8080.8864705,0.00016986,2]
[327249635,1715923843138,-427.63664462,0.00016986,2]
[327249638,1715923843150,-7882.27688488,0.00016986,2]
[327249641,1715923843159,-500.0,0.00016986,2]
[327249643,1715923843169,-155.225508,0.00016986,2]
[327249644,1715923843178,-500.0,0.00016986,2]
[327249646,1715923843188,-661.93,0.00016986,2]
[327249647,1715923843197,-808.26,0.00016986,2]
[327249649,1715923843207,-4251.68,0.00016986,2]
[327249650,1715923843216,-151.0,0.00016986,2]
[327249651,1715923843227,-151.0,0.00016986,2]
[327249652,1715923843236,-639.06,0.00016986,2]
[327249653,1715923843245,-250.54351558,0.00016986,2]
[327249654,1715923843258,-3892.36342842,0.00016986,2]
[327249655,1715923843267,-1546.93,0.00016986,2]
[327249656,1715923843276,-4142.906944,0.00016986,2]
[327249657,1715923843286,-500.0,0.00016986,2]
[327249658,1715923843295,-4142.906944,0.00016986,2]
[327249659,1715923843304,-4142.906944,0.00016986,2]
[327249660,1715923843314,-500.0,0.00016986,2]
[327249661,1715923843323,-2007.69,0.00016986,2]
[327249662,1715923843333,-626.44,0.00016986,2]
[327249663,1715923843343,-927.79,0.00016986,2]
[327249664,1715923843352,-504.11,0.00016986,2]
[327249665,1715923843362,-500.0,0.00016986,2]
[327249666,1715923843372,-6526.61,0.00016986,2]
[327249667,1715923843381,-500.0,0.00016986,2]
[327249668,1715923843392,-500.0,0.00016986,2]
[327249669,1715923843401,-151.0,0.00016986,2]
[327249670,1715923843410,-900.85,0.00016986,2]
[327249671,1715923843420,-500.0,0.00016986,2]
[327249672,1715923843429,-4110.51,0.00016986,2]
[327249673,1715923843440,-651.03,0.00016986,2]
[327249674,1715923843450,-1325.45,0.00016986,2]
[327249675,1715923843459,-717.16,0.00016986,2]
[327249676,1715923843468,-151.0,0.00016986,2]
[327249677,1715923843478,-151.0,0.00016986,2]
[327249678,1715923843487,-151.0,0.00016986,2]
[327249679,1715923843497,-1039.37,0.00016986,2]
[327249680,1715923843506,-151.0,0.00016986,2]
[327249682,1715923843515,-151.0,0.00016986,2]
[327249684,1715923843524,-500.0,0.00016986,2]
[327249685,1715923843534,-585.41,0.00016986,2]
[327249686,1715923843543,-500.0,0.00016986,2]
[327249687,1715923843553,-500.0,0.00016986,2]
[327249688,1715923843562,-557.72,0.00016986,2]
[327249689,1715923843572,-500.0,0.00016986,2]
[327249690,1715923843582,-151.0,0.00016986,2]
[327249691,1715923843592,-509.04,0.00016986,2]
[327249692,1715923843601,-151.0,0.00016986,2]
[327249693,1715923843612,-500.0,0.00016986,2]
[327249694,1715923843621,-500.0,0.00016986,2]
[327249695,1715923843631,-186.20773,0.00017051,2]
[327249696,1715923843640,-220.5,0.00017054,2]
[327249697,1715923843650,-150.0,0.00017054,2]
[327249698,1715923843659,-500.11958888,0.0001725,2]
[327249699,1715923843670,-500.0,0.0001726,2]
[327249700,1715923843679,-500.0,0.0001726,2]
[327249701,1715923843690,-500.0,0.0001726,2]
[327249702,1715923843699,-500.0,0.0001726,2]
[327249703,1715923843708,-500.0,0.0001726,2]
[327249704,1715923843717,-500.0,0.0001726,2]
[327249705,1715923843731,-500.0,0.0001726,2]
[327249706,1715923843740,-750.25,0.0001726,2]
[327249707,1715923843749,-532.34675723,0.0001726,2]
[327249708,1715923843758,-328.4580665,0.0001726,2]
[327249709,1715923843770,-832.16,0.0001726,2]
[327249710,1715923843779,-500.0,0.0001726,2]
[327249711,1715923843789,-500.0,0.0001726,2]
[327249712,1715923843798,-500.0,0.0001726,2]
[327249713,1715923843807,-572.65,0.0001726,2]
[327249714,1715923843816,-500.0,0.0001726,2]
[327249715,1715923843825,-500.0,0.0001726,2]
[327249716,1715923843834,-585.68,0.0001726,2]
[327249717,1715923843843,-854.05,0.0001726,2]
[327249718,1715923843852,-500.0,0.0001726,2]
[327249719,1715923843861,-556.93,0.0001726,2]
[327249720,1715923843871,-500.0,0.0001726,2]
[327249721,1715923843880,-151.0,0.0001726,2]
[327249722,1715923843889,-601.49,0.0001726,2]
[327249723,1715923843898,-151.0,0.0001726,2]
[327249724,1715923843907,-803.5,0.0001726,2]
[327249725,1715923843917,-500.0,0.0001726,2]
[327249726,1715923843926,-500.0,0.0001726,4]
[327249727,1715923843937,-668.16,0.0001726,2]
[327249729,1715923843946,-500.0,0.0001726,2]
[327249731,1715923843955,-500.0,0.0001726,2]
[327249732,1715923843964,-2426.51,0.0001726,2]
[327249734,1715923843973,-1312.25,0.0001726,2]
[327249736,1715923843983,-730.43,0.0001726,2]
[327249738,1715923843992,-500.0,0.0001726,2]
[327249740,1715923844001,-500.0,0.0001726,2]
[327249741,1715923844011,-1501.89,0.0001726,2]
[327249742,1715923844020,-16390.8,0.0001726,2]
[327249743,1715923844029,-500.0,0.0001726,2]
[327249744,1715923844038,-500.0,0.0001726,2]
[327249745,1715923844047,-661.93,0.0001726,2]
[327249746,1715923844057,-808.26,0.0001726,2]
[327249747,1715923844066,-4251.68,0.0001726,2]
[327249748,1715923844075,-151.0,0.0001726,2]
[327249749,1715923844084,-639.06,0.0001726,2]
[327249750,1715923844094,-1546.93,0.0001726,2]
[327249751,1715923844103,-4142.906944,0.0001726,2]
[327249752,1715923844114,-4142.906944,0.0001726,2]
[327249753,1715923844123,-500.0,0.0001726,2]
[327249754,1715923844132,-3437.07010648,0.0001726,2]
[327249755,1715923844146,-705.83683752,0.0001726,2]
[327249756,1715923844155,-1530.38190826,0.0001726,2]
[327249757,1715923844283,-2612.52503574,0.0001726,2]
[327249758,1715923844292,-500.0,0.0001726,2]
[327249759,1715923844302,-2007.69,0.0001726,2]
[327249760,1715923844311,-626.44,0.0001726,2]
[327249761,1715923844320,-927.79,0.0001726,2]
[327249762,1715923844330,-504.11,0.0001726,2]
[327249763,1715923844339,-500.0,0.0001726,2]
[327249764,1715923844349,-6526.61,0.0001726,2]
[327249765,1715923844359,-500.0,0.0001726,2]
[327249766,1715923844368,-500.0,0.0001726,2]
[327249767,1715923844378,-900.85,0.0001726,2]
[327249768,1715923844388,-500.0,0.0001726,2]
[327249769,1715923844397,-4110.51,0.0001726,2]
[327249770,1715923844407,-651.03,0.0001726,2]
[327249771,1715923844423,-1325.45,0.0001726,2]
[327249772,1715923844436,-717.16,0.0001726,2]
[327249773,1715923844445,-151.0,0.0001726,2]
[327249774,1715923844454,-187.906378,0.0001726,2]
[327249775,1715923844464,-1039.37,0.0001726,2]
[327249776,1715923844473,-151.0,0.0001726,2]
[327249777,1715923844483,-151.0,0.0001726,2]
[327249778,1715923844492,-500.0,0.0001726,2]
[327249779,1715923844501,-585.41,0.0001726,2]
[327249780,1715923844511,-500.0,0.0001726,2]
[327249781,1715923844520,-500.0,0.0001726,2]
[327249782,1715923844531,-557.72,0.0001726,2]
[327249783,1715923844541,-220.5,0.0001726,2]
[327249784,1715923844551,-500.0,0.0001726,2]
[327249785,1715923844561,-509.04,0.0001726,2]
[327249786,1715923844571,-500.0,0.0001726,2]
[327249787,1715923844580,-150.0,0.0001726,2]
[327249788,1715923844589,-500.0,0.0001726,2]
[327249789,1715923844598,-220.5,0.00017465,2]
[327249790,1715923844607,-500.0,0.00017534,2]
[327249791,1715923844617,-500.0,0.00017534,2]
[327249792,1715923844626,-500.0,0.00017534,2]
[327249793,1715923844637,-500.0,0.00017534,2]
[327249794,1715923844647,-500.0,0.00017534,2]
[327249795,1715923844656,-500.0,0.00017534,2]
[327249796,1715923844666,-500.0,0.00017534,2]
[327249797,1715923844676,-750.25,0.00017534,2]
[327249798,1715923844688,-832.16,0.00017534,2]
[327249799,1715923844696,-500.0,0.00017534,2]
[327249800,1715923844705,-500.0,0.00017534,2]
[327249801,1715923844717,-500.0,0.00017534,2]
[327249802,1715923844732,-572.65,0.00017534,2]
[327249803,1715923844741,-500.0,0.00017534,2]
[327249804,1715923844751,-500.0,0.00017534,2]
[327249805,1715923844760,-585.68,0.00017534,2]
[327249806,1715923844771,-854.05,0.00017534,2]
[327249807,1715923844780,-500.0,0.00017534,2]
[327249808,1715923844789,-556.93,0.00017534,2]
[327249809,1715923844798,-500.0,0.00017534,2]
[327249810,1715923844807,-151.0,0.00017534,2]
[327249811,1715923844817,-151.0,0.00017534,2]
[327249812,1715923844826,-601.49,0.00017534,2]
[327249813,1715923844835,-151.0,0.00017534,2]
[327249814,1715923844844,-151.0,0.00017534,2]
[327249815,1715923844853,-803.5,0.00017534,2]
[327249816,1715923844862,-500.0,0.00017534,2]
[327249817,1715923844872,-500.0,0.00017534,4]
[327249818,1715923844881,-500.0,0.00017534,2]
[327249819,1715923844890,-617.0373462,0.00017534,2]
[327249820,1715923844899,-2426.51,0.00017534,2]
[327249821,1715923844908,-1312.25,0.00017534,2]
[327249822,1715923844917,-730.43,0.00017534,2]
[327249823,1715923844927,-500.0,0.00017534,2]
[327249824,1715923844939,-500.0,0.00017534,2]
[327249825,1715923844948,-1501.89,0.00017534,2]
[327249826,1715923844957,-7929.73486317,0.00017534,2]
[327249827,1715923844980,-101.989009,0.00017534,2]
[327249838,1715924060522,1000.0,0.00025,60]
[327249840,1715924144571,1000.0,0.00019,10]
[327249842,1715924324111,675.749847,9.999e-05,2]
[327249844,1715924566542,150.12480552,0.00023,30]
[327249845,1715924618826,713.9311065,9.999e-05,2]
[327249846,1715924661639,1358.01,0.00023,30]
[327249847,1715924814167,675.749847,9.999e-05,2]
[327249900,1715925039735,-675.749847,0.00016429,2]
[327249901,1715925039744,-1240.16427863,0.0001643,2]
[327249905,1715925041203,-874.02946604,0.0001643,2]
[327249906,1715925041218,-502.29366968,0.00016438,2]
[327249907,1715925041230,-502.50401394,0.00016438,2]
[327249908,1715925041242,-500.0,0.00016438,2]
[327249909,1715925041251,-593.95,0.00016438,2]
[327249910,1715925041260,-500.0,0.00016438,4]
[327249911,1715925041269,-500.0,0.00016438,2]
[327249912,1715925041278,-658.79,0.00016438,2]
[327249913,1715925041288,-500.0,0.00016438,2]
[327249914,1715925041300,-500.0,0.00016438,2]
[327249915,1715925041311,-500.0,0.00016438,2]
[327249916,1715925041320,-500.0,0.00016438,2]
[327249917,1715925041330,-676.12,0.00016438,2]
[327249918,1715925041339,-500.0,0.00016438,2]
[327249919,1715925041348,-500.0,0.00016438,2]
[327249920,1715925041358,-500.0,0.00016438,2]
[327249921,1715925041367,-501.92052098,0.00016438,2]
[327249922,1715925041377,-500.0,0.00016438,2]
[327249923,1715925041386,-500.0,0.00016438,2]
[327249924,1715925041395,-500.0,0.00016438,2]
[327249925,1715925041405,-502.20492678,0.00016438,2]
[327249926,1715925041417,-500.0,0.00016438,2]
[327249927,1715925041429,-500.0,0.00016438,2]
[327249928,1715925041441,-500.0,0.00016438,2]
[327249929,1715925041453,-500.0,0.00016438,2]
[327249930,1715925041465,-500.0,0.00016438,2]
[327249931,1715925041477,-636.1,0.00016438,2]
[327249932,1715925041491,-1920.98,0.00016438,2]
[327249933,1715925041500,-500.0,0.00016438,2]
[327249934,1715925041511,-605.64143047,0.00016438,2]
[327249935,1715925041521,-556.8,0.00016438,2]
[327249936,1715925041533,-500.0,0.00016438,2]
[327249937,1715925041545,-1038.87,0.00016438,2]
[327249938,1715925041555,-500.0,0.00016438,2]
[327249939,1715925041566,-13324.34,0.00016438,2]
[327249940,1715925041577,-500.0,0.00016438,2]
[327249941,1715925041588,-673.55,0.00016438,2]
[327249942,1715925041600,-500.0,0.00016438,2]
[327249943,1715925041611,-578.26,0.00016438,2]
[327249944,1715925041624,-500.0,0.00016438,2]
[327249945,1715925041634,-551.61,0.00016438,2]
[327249946,1715925041645,-532.55,0.00016438,2]
[327249947,1715925041656,-1188.99,0.00016438,2]
[327249948,1715925041667,-500.0,0.00016438,2]
[327249949,1715925041680,-522.03,0.00016438,2]
[327249950,1715925041691,-3543.07,0.00016438,2]
[327249951,1715925041704,-500.0,0.00016438,2]
[327249952,1715925041716,-1289.11,0.00016438,2]
[327249953,1715925041728,-1673.08,0.00016438,2]
[327249954,1715925041742,-773.16,0.00016438,2]
[327249955,1715925041753,-500.0,0.00016438,2]
[327249956,1715925041763,-500.0,0.00016438,2]
[327249957,1715925041773,-5438.84,0.00016438,2]
[327249958,1715925041784,-1341.20597211,0.00016438,2]
[327249974,1715925104890,475.954071,9.999e-05,2]
[327249985,1715925586368,675.749847,9.999e-05,2]
[327249987,1715925614968,396.6283925,9.999e-05,2]
[327249992,1715926111035,206.64339249,9.999e-05,2]
[327249993,1715926176918,675.749847,9.999e-05,2]
[327250011,1715926238889,-2023.63372995,0.00016103,2]
[327250024,1715926239007,-90.56001472,0.00016103,2]
[327250027,1715926239017,-206.64339249,0.00016104,2]
[327250029,1715926239027,-150.0,0.00016123,2]
[327250030,1715926239037,-180.22791368,0.00016338,2]
[327250032,1715926239047,-416.98047207,0.0001638,2]
[327250034,1715926239056,-4221.46001999,0.00016398,2]
[327250036,1715926239065,-269.751071,0.00016436,2]
[327250038,1715926239075,-155.1039271,0.00016437,2]
[327250040,1715926239084,-500.0,0.00016438,4]
[327250042,1715926239094,-500.0,0.00016438,2]
[327250044,1715926239103,-500.0,0.00016438,2]
[327250046,1715926239112,-500.0,0.00016438,2]
[327250047,1715926239121,-500.0,0.00016438,2]
[327250049,1715926239131,-569.2,0.00016438,2]
[327250051,1715926239140,-500.0,0.00016438,2]
[327250053,1715926239149,-631.34,0.00016438,2]
[327250055,1715926239158,-500.0,0.00016438,2]
[327250057,1715926239168,-500.0,0.00016438,2]
[327250059,1715926239178,-500.0,0.00016438,2]
[327250060,1715926239187,-500.0,0.00016438,2]
[327250061,1715926239196,-500.0,0.00016438,2]
[327250062,1715926239205,-647.95,0.00016438,2]
[327250063,1715926239214,-500.0,0.00016438,2]
[327250064,1715926239224,-500.0,0.00016438,2]
[327250065,1715926239233,-500.0,0.00016438,2]
[327250066,1715926239244,-500.0,0.00016438,2]
[327250067,1715926239253,-501.61954592,0.00016438,2]
[327250068,1715926239263,-500.0,0.00016438,2]
[327250069,1715926239272,-425.42079769,0.00016438,2]
[327250070,1715926239282,-500.0,0.00016438,2]
[327250071,1715926239291,-500.0,0.00016438,2]
[327250072,1715926239301,-500.0,0.00016438,2]
[327250073,1715926239310,-500.0,0.00016438,2]
[327250074,1715926239319,-609.6,0.00016438,2]
[327250075,1715926239328,-680.71,0.00016438,2]
[327250076,1715926239337,-500.0,0.00016438,2]
[327250077,1715926239346,-995.58,0.00016438,2]
[327250078,1715926239355,-3850.22389429,0.00016438,2]
[327250108,1715926240744,-4130.49610571,0.00016438,2]
[327250109,1715926240754,-500.0,0.00016438,2]
[327250110,1715926240932,-500.0,0.00016438,2]
[327250111,1715926240942,-554.16,0.00016438,2]
[327250112,1715926240952,-645.48,0.00016438,2]
[327250113,1715926240961,-500.0,0.00016438,2]
[327250114,1715926240971,-528.63,0.00016438,2]
[327250115,1715926240980,-1139.45,0.00016438,2]
[327250116,1715926240989,-510.36,0.00016438,2]
[327250117,1715926240998,-500.0,0.00016438,2]
[327250118,1715926241008,-500.0,0.00016438,2]
[327250119,1715926241018,-3395.44,0.00016438,2]
[327250120,1715926241028,-500.28,0.00016438,2]
[327250121,1715926241039,-1235.39,0.00016438,2]
[327250122,1715926241048,-1603.36,0.00016438,2]
[327250123,1715926241058,-740.95,0.00016438,2]
[327250124,1715926241067,-500.0,0.00016438,2]
[327250125,1715926241076,-500.0,0.00016438,2]
[327250126,1715926241086,-3369.54,0.00016438,2]
[327250127,1715926241096,-500.0,0.00016438,2]
[327250128,1715926241105,-5212.22,0.00016438,2]
[327250129,1715926241115,-750.71,0.00016438,2]
[327250130,1715926241125,-597.64,0.00016438,2]
[327250131,1715926241134,-1104.54,0.00016438,2]
[327250132,1715926241143,-500.0,0.00016438,2]
[327250133,1715926241153,-500.0,0.00016438,2]
[327250134,1715926241162,-542.52,0.00016438,2]
[327250135,1715926241171,-769.99114458,0.00016438,2]
[327250158,1715926674645,206.64339249,9.999e-05,2]
[327250192,1715927158841,206.64339249,9.999e-05,2]
[327250193,1715927168881,428.0,0.00023,30]
[327250195,1715927234981,-848.296082,0.0001622,2]
[327250260,1715927439341,-206.64339249,0.00016198,2]
[327250262,1715927439352,-2114.19374467,0.00016198,2]
[327250264,1715927439362,-384.56552542,0.00016199,2]
[327250266,1715927439372,-4221.46001999,0.00016382,2]
[327250268,1715927439383,-620.00071421,0.00016413,2]
[327250270,1715927439394,-500.0,0.00016438,2]
[327250272,1715927439405,-504.08014551,0.00016438,2]
[327250274,1715927439415,-500.0,0.00016438,2]
[327250276,1715927439425,-501.98543412,0.00016438,2]
[327250278,1715927439435,-543.09779564,0.00016438,2]
[327250280,1715927439447,-500.0,0.00016438,2]
[327250282,1715927439458,-500.0,0.00016438,2]
[327250284,1715927439468,-500.0,0.00016438,2]
[327250286,1715927439478,-500.0,0.00016438,2]
[327250287,1715927439489,-545.49,0.00016438,2]
[327250288,1715927439499,-500.0,0.00016438,2]
[327250289,1715927439509,-500.0,0.00016438,2]
[327250290,1715927439519,-605.04,0.00016438,2]
[327250291,1715927439530,-500.0,0.00016438,2]
[327250292,1715927439540,-500.0,0.00016438,2]
[327250293,1715927439551,-500.0,0.00016438,2]
[327250294,1715927439562,-500.0,0.00016438,2]
[327250295,1715927439573,-500.0,0.00016438,2]
[327250296,1715927439582,-620.95,0.00016438,2]
[327250297,1715927439592,-500.0,0.00016438,2]
[327250298,1715927439602,-500.0,0.00016438,2]